bitfinex/quotes_BTCUSD_20230114
["timestamp","ask_amount","ask_price","bid_price","bid_amount"]
[1673664241999,0.01045286,20973.0,20971.0,0.47623185]
[1673664242246,0.01045286,20973.0,20971.0,0.15563385]
[1673664243010,0.17841743,20973.0,20971.0,0.15563385]
[1673664243265,0.14112694,20972.0,20970.0,0.18310462]
[1673664244516,0.14112694,20972.0,20971.0,0.320596]
[1673664244755,0.14112694,20972.0,20970.0,0.18310462]
[1673664245480,0.01045286,20973.0,20971.0,0.320597]
[1673664245732,0.01045286,20973.0,20970.0,0.18310462]
[1673664245981,0.16525098,20973.0,20970.0,0.18310462]
[1673664247981,0.16525098,20973.0,20971.0,0.320596]
[1673664247982,0.01045286,20973.0,20971.0,0.320596]
[1673664248224,0.01045286,20973.0,20972.0,0.2]
[1673664248474,0.01045286,20973.0,20972.0,1.140454]
[1673664248969,0.01045286,20973.0,20972.0,1.10261368]
[1673664249970,0.20594055,20973.0,20970.0,0.18332729]
[1673664250213,0.30442763,20973.0,20970.0,0.18332729]
[1673664250457,0.30442763,20973.0,20970.0,0.18322086]
[1673664250679,0.20594055,20973.0,20970.0,0.18322086]
[1673664251479,0.20594055,20973.0,20968.0,0.61997]
[1673664251720,0.14804415,20972.0,20968.0,0.17035653]
[1673664251978,0.24653123,20972.0,20968.0,0.17035653]
[1673664252220,0.24653123,20972.0,20969.0,0.18874626]
[1673664252466,0.14804415,20972.0,20969.0,0.18874626]
[1673664253715,0.09848708,20971.0,20966.0,0.97589024]
[1673664253964,0.09848708,20971.0,20966.0,0.17931165]
[1673664253965,0.09848708,20970.0,20966.0,0.17931165]
[1673664254211,0.09848708,20969.0,20964.0,0.14228616]
[1673664254471,0.09848708,20968.0,20964.0,0.18719352]
[1673664254717,0.09848708,20967.0,20964.0,0.18719352]
[1673664254966,0.09848708,20967.0,20964.0,0.18738352]
[1673664255476,0.80429482,20969.0,20964.0,0.32966968]
[1673664255739,0.80429482,20969.0,20965.0,0.16031158]
[1673664255986,0.80429482,20969.0,20965.0,0.49332369]
[1673664256521,0.80429482,20969.0,20966.0,0.14228616]
[1673664256756,0.18901019,20968.0,20965.0,0.30259774]
[1673664257496,0.18901019,20968.0,20965.0,0.16031158]
[1673664257738,0.18901019,20968.0,20965.0,0.30259774]
[1673664258236,0.28749727,20968.0,20965.0,0.30259774]
[1673664258486,0.18901019,20968.0,20965.0,0.16031158]
[1673664258729,0.80900519,20968.0,20964.0,0.35585424]
[1673664258974,0.90749227,20968.0,20964.0,0.49750949]
[1673664259492,0.18167576,20967.0,20964.0,0.49750949]
[1673664259734,0.18167576,20967.0,20965.0,0.14228616]
[1673664259986,0.18167576,20967.0,20966.0,0.0019159]
[1673664260703,0.620021,20967.0,20966.0,0.0019159]
[1673664260953,0.833445,20967.0,20966.0,0.0019159]
[1673664261234,0.99083487,20967.0,20966.0,0.0019159]
[1673664261481,1.19083487,20967.0,20966.0,0.0019159]
[1673664261988,1.033445,20967.0,20966.0,0.0019159]
[1673664262246,1.033445,20967.0,20966.0,1.59e-05]
[1673664263278,1.2607903,20967.0,20966.0,1.59e-05]
[1673664263519,1.033445,20967.0,20966.0,1.59e-05]
[1673664264032,1.49162322,20967.0,20966.0,1.59e-05]
[1673664265488,1.01914021,20967.0,20966.0,1.59e-05]
[1673664265734,1.95452012,20967.0,20966.0,1.59e-05]
[1673664265970,2.15039403,20967.0,20966.0,1.59e-05]
[1673664267732,2.83775154,20967.0,20966.0,1.59e-05]
[1673664267981,0.2,20966.0,20955.0,0.68387607]
[1673664268233,1.860447,20963.0,20956.0,0.14834917]
[1673664268484,0.7784756,20962.0,20955.0,0.14228616]
[1673664268730,1.240462,20960.0,20958.0,0.00979408]
[1673664268977,0.51191108,20959.0,20958.0,0.00979408]
[1673664269224,0.620149,20963.0,20958.0,0.06582408]
[1673664269508,1.31829636,20966.0,20959.0,0.19072595]
[1673664269509,1.21842337,20966.0,20959.0,0.19072595]
[1673664269805,0.00019,20962.0,20960.0,0.19072595]
[1673664270086,0.18085684,20962.0,20959.0,0.19143627]
[1673664270337,0.00019,20962.0,20959.0,0.19143627]
[1673664270598,0.00019,20962.0,20960.0,0.320729]
[1673664270848,0.00019,20962.0,20961.0,0.320729]
[1673664271617,0.73818453,20962.0,20958.0,0.00979408]
[1673664271879,0.40253391,20961.0,20958.0,0.16453752]
[1673664272117,0.18910991,20961.0,20958.0,0.16453752]
[1673664272365,0.28759699,20961.0,20958.0,0.00979408]
[1673664272610,0.17933901,20960.0,20958.0,0.00979408]
[1673664276476,0.79956901,20960.0,20958.0,0.00979408]
[1673664277426,0.17933901,20960.0,20958.0,0.19484279]
[1673664277920,0.17933901,20960.0,20958.0,0.00979408]
[1673664278631,0.17933901,20960.0,20957.0,0.18448156]
[1673664278632,0.17933901,20960.0,20957.0,0.18237888]
[1673664279052,0.79956801,20960.0,20955.0,0.18711574]
[1673664279235,0.09848708,20959.0,20955.0,0.18211574]
[1673664279497,0.09848708,20959.0,20956.0,0.18885357]
[1673664279710,0.2,20959.0,20956.0,0.18885357]
[1673664279863,0.79956801,20960.0,20956.0,0.18885357]
[1673664280106,0.17933901,20960.0,20956.0,0.37957952]
[1673664280370,0.17933901,20960.0,20957.0,0.154701]
[1673664281603,0.620203,20961.0,20955.0,0.620374]
[1673664281816,0.2678774,20960.0,20955.0,0.19072595]
[1673664282091,0.09848708,20959.0,20955.0,0.1946288]
[1673664282832,0.80144849,20960.0,20955.0,0.1946288]
[1673664283057,0.16634863,20959.0,20955.0,0.38535475]
[1673664283317,0.16634863,20959.0,20956.0,0.320729]
[1673664283540,0.16634863,20959.0,20955.0,0.8150048]
[1673664283777,0.16634863,20959.0,20956.0,0.320729]
[1673664284028,0.16634863,20959.0,20955.0,1.00573075]
[1673664284260,0.16634863,20959.0,20955.0,0.8150048]
[1673664284496,0.16634863,20959.0,20956.0,0.320729]
[1673664284736,0.00019,20960.0,20957.0,0.19072595]
[1673664284984,0.00019,20960.0,20958.0,0.320729]
[1673664285226,0.00019,20960.0,20957.0,0.620305]
[1673664285465,0.14075326,20959.0,20958.0,0.320729]
[1673664285705,0.14075326,20959.0,20956.0,0.76263016]
[1673664285706,0.14075326,20959.0,20956.0,0.1985198]
[1673664285930,0.23924034,20959.0,20956.0,0.1985198]
[1673664286183,0.23924034,20959.0,20957.0,0.320729]
[1673664286432,0.14075326,20959.0,20957.0,0.15029661]
[1673664286671,0.00019,20960.0,20958.0,0.51145495]
[1673664286899,0.17942573,20964.0,20959.0,1.561245]
[1673664287144,0.19716967,20965.0,20960.0,0.19072595]
[1673664287391,0.19030004,20964.0,20961.0,0.51145495]
[1673664287646,0.19030004,20964.0,20961.0,0.19072595]
[1673664287878,0.19030004,20964.0,20962.0,0.320729]
[1673664288122,0.19030004,20964.0,20960.0,0.620221]
[1673664288352,0.620026,20967.0,20961.0,0.940928]
[1673664288589,0.620026,20967.0,20962.0,0.19072595]
[1673664288590,0.14283629,20966.0,20962.0,0.19072595]
[1673664288831,0.14289629,20966.0,20963.0,0.320729]
[1673664289080,6e-05,20966.0,20964.0,0.19072595]
[1673664289379,6e-05,20966.0,20965.0,0.320708]
[1673664290343,0.20803777,20968.0,20965.0,0.320708]
[1673664290599,0.14588094,20967.0,20965.0,0.19072595]
[1673664290840,0.0090778,20968.0,20966.0,0.320687]
[1673664291084,0.16743905,20968.0,20965.0,0.18307446]
[1673664291550,0.16743905,20968.0,20966.0,0.320686]
[1673664291782,0.16743905,20968.0,20965.0,0.18307446]
[1673664292270,0.16743905,20968.0,20966.0,0.320686]
[1673664292501,0.16743905,20968.0,20965.0,0.18307446]
[1673664293547,0.16743905,20968.0,20966.0,0.320686]
[1673664293776,0.16743905,20968.0,20965.0,0.18307446]
[1673664295740,0.19183949,20967.0,20965.0,0.18307446]
[1673664295990,0.0090778,20968.0,20967.0,0.17876303]
[1673664296233,0.0090778,20968.0,20967.0,1.11945403]
[1673664299707,0.0090778,20968.0,20967.0,1.12594605]
[1673664300912,0.0090778,20968.0,20967.0,0.940691]
[1673664301173,0.0090778,20968.0,20967.0,1.10139926]
[1673664302384,0.0090778,20968.0,20967.0,1.140691]
[1673664302864,0.0090778,20968.0,20967.0,2.16447288]
[1673664303112,0.0090778,20968.0,20967.0,2.36921552]
[1673664303373,0.0090778,20968.0,20967.0,2.08445721]
[1673664303623,0.0090778,20968.0,20967.0,3.03840472]
[1673664303876,0.0090778,20968.0,20967.0,1.61789269]
[1673664304122,0.0090778,20968.0,20967.0,1.90214742]
[1673664304362,0.0090778,20968.0,20967.0,2.25781138]
[1673664305334,0.0090778,20968.0,20967.0,1.97355665]
[1673664306059,0.0090778,20968.0,20967.0,2.08445721]
[1673664306298,0.0090778,20968.0,20967.0,2.43939801]
[1673664306539,0.0090778,20968.0,20967.0,1.97283349]
[1673664306784,0.0090778,20968.0,20967.0,2.43939801]
[1673664307019,0.0090778,20968.0,20967.0,1.97283349]
[1673664307251,0.0090778,20968.0,20967.0,2.48196222]
[1673664307486,0.0090778,20968.0,20967.0,1.6604569]
[1673664307727,8e-07,20968.0,20967.0,2.12702142]
[1673664307965,0.00019,20971.0,20967.0,2.12702142]
[1673664307966,0.00019,20971.0,20967.0,2.61432379]
[1673664308209,0.09867708,20971.0,20968.0,0.83208649]
[1673664308455,0.09867708,20971.0,20969.0,2.65772169]
[1673664308698,0.00019,20971.0,20969.0,1.859886]
[1673664308942,0.00019,20971.0,20970.0,0.320616]
[1673664308943,0.05354,20971.0,20970.0,0.320616]
[1673664309186,0.00019,20971.0,20970.0,0.320616]
[1673664309707,0.14735968,20972.0,20970.0,0.320616]
[1673664309912,0.01045286,20973.0,20969.0,0.81246188]
[1673664309913,0.14408114,20971.0,20969.0,0.81246188]
[1673664310155,0.14408114,20971.0,20970.0,0.320614]
[1673664310398,0.01045286,20973.0,20970.0,0.320614]
[1673664310635,0.15154456,20972.0,20970.0,0.81065795]
[1673664310881,0.15154456,20972.0,20971.0,0.320597]
[1673664311603,0.15154456,20972.0,20971.0,0.9405]
[1673664311845,0.01045286,20973.0,20971.0,0.9405]
[1673664312094,0.18495814,20973.0,20971.0,0.619903]
[1673664312408,0.14293649,20972.0,20970.0,0.619932]
[1673664312896,0.24142357,20972.0,20968.0,0.18727013]
[1673664313370,0.24142357,20972.0,20969.0,0.16810273]
[1673664313608,0.14293649,20972.0,20970.0,0.50848046]
[1673664313850,0.01045286,20973.0,20972.0,0.15161625]
[1673664314096,0.01045286,20973.0,20972.0,0.47219825]
[1673664314591,0.01045286,20973.0,20972.0,1.09207225]
[1673664315335,0.01045286,20973.0,20972.0,0.940456]
[1673664316326,0.10893994,20973.0,20969.0,0.3548848]
[1673664316555,0.25412912,20972.0,20969.0,0.17278563]
[1673664316792,0.15564204,20972.0,20969.0,0.17278563]
[1673664317035,0.25412912,20972.0,20968.0,0.19803908]
[1673664317308,0.09848708,20971.0,20966.0,0.820042]
[1673664317538,0.09848708,20970.0,20967.0,0.16111319]
[1673664317780,0.09848708,20970.0,20966.0,0.2]
[1673664318035,0.16170412,20969.0,20966.0,0.18642726]
[1673664318276,0.2601912,20969.0,20966.0,0.18642726]
[1673664318514,0.26096305,20969.0,20964.0,0.31942262]
[1673664318754,0.09848708,20968.0,20964.0,0.1774687]
[1673664318994,0.09848708,20967.0,20964.0,0.1774687]
[1673664319712,0.09848708,20967.0,20963.0,0.14214392]
[1673664319991,0.09848708,20967.0,20963.0,0.19621543]
[1673664320238,0.09848708,20967.0,20963.0,0.33816935]
[1673664320477,0.16916473,20966.0,20963.0,0.00019]
[1673664320970,0.09848708,20965.0,20961.0,0.3548848]
[1673664321215,0.09848708,20964.0,20960.0,0.15296779]
[1673664321465,0.41920708,20963.0,20960.0,0.01101387]
[1673664321718,0.71863308,20963.0,20960.0,0.01101387]
[1673664322204,0.2,20962.0,20960.0,0.01101387]
[1673664322441,0.620146,20963.0,20960.0,0.01101387]
[1673664322972,0.32072,20962.0,20960.0,0.01101387]
[1673664323215,1.033486,20961.0,20960.0,0.01101387]
[1673664323462,0.833486,20961.0,20960.0,0.01101387]
[1673664323709,0.620199,20961.0,20960.0,0.01101387]
[1673664325086,1.13682071,20961.0,20960.0,0.01101387]
[1673664325331,1.33682071,20961.0,20960.0,0.01101387]
[1673664325586,1.140919,20961.0,20960.0,0.01101387]
[1673664330268,0.940919,20961.0,20960.0,0.01101387]
[1673664330723,1.13102654,20961.0,20960.0,0.01101387]
[1673664330997,0.940919,20961.0,20960.0,0.01101387]
[1673664331237,1.12396939,20961.0,20960.0,0.01101387]
[1673664331727,0.940919,20961.0,20960.0,0.01101387]
[1673664331973,1.08466018,20961.0,20960.0,0.01101387]
[1673664332459,1.08466018,20961.0,20960.0,0.0109255]
[1673664332676,0.76394018,20961.0,20960.0,0.0109255]
[1673664333170,1.08466018,20961.0,20960.0,0.0109255]
[1673664334388,0.14374118,20961.0,20960.0,0.0109255]
[1673664334628,0.620146,20963.0,20960.0,0.20160131]
[1673664334629,0.78330378,20963.0,20960.0,0.20160131]
[1673664334867,0.14485336,20962.0,20960.0,0.39232726]
[1673664335176,0.14485336,20962.0,20960.0,0.20160131]
[1673664335410,0.14861815,20963.0,20960.0,0.20160131]
[1673664335644,0.14861815,20963.0,20960.0,0.39232726]
[1673664335883,2.6025,20972.0,20960.0,0.20165145]
[1673664336131,0.14795667,20965.0,20962.0,0.2]
[1673664336391,0.61998,20969.0,20963.0,0.620135]
[1673664336615,0.71846708,20969.0,20964.0,0.19072595]
[1673664336873,1.11635159,20969.0,20964.0,0.19072595]
[1673664337165,0.32072,20968.0,20964.0,0.19072595]
[1673664337411,1.653341,20967.0,20961.0,0.18407693]
[1673664337697,1.653341,20967.0,20961.0,0.37499288]
[1673664337698,0.41920708,20966.0,20961.0,0.37499288]
[1673664337902,0.09848708,20965.0,20961.0,0.18426693]
[1673664338635,0.71856808,20965.0,20961.0,0.00019]
[1673664339125,0.2,20964.0,20961.0,0.15535518]
[1673664339353,0.19146696,20963.0,20961.0,0.15535518]
[1673664339589,0.19146696,20963.0,20961.0,0.15516518]
[1673664342264,0.19146696,20963.0,20960.0,0.0109255]
[1673664342778,0.19146696,20963.0,20960.0,0.17537645]
[1673664346897,0.19146696,20963.0,20960.0,0.0109255]
[1673664347147,0.09848708,20962.0,20960.0,0.0109255]
[1673664347392,0.32072,20961.0,20960.0,0.0109255]
[1673664347649,0.620191,20962.0,20960.0,0.0109255]
[1673664348349,0.32072,20961.0,20960.0,0.0109255]
[1673664348603,0.620199,20961.0,20960.0,0.0109255]
[1673664349094,0.940919,20961.0,20960.0,0.0109255]
[1673664349585,0.620199,20961.0,20960.0,0.0109255]
[1673664349824,1.140919,20961.0,20960.0,0.0109255]
[1673664350091,0.940919,20961.0,20960.0,0.0109255]
[1673664351123,1.3590441,20961.0,20960.0,0.0109255]
[1673664351362,1.140919,20961.0,20960.0,0.0109255]
[1673664351641,1.140919,20961.0,20960.0,0.01070074]
[1673664353636,1.61152206,20961.0,20960.0,0.01070074]
[1673664353878,1.140919,20961.0,20960.0,0.01070074]
[1673664354882,1.61152206,20961.0,20960.0,0.01070074]
[1673664355129,1.61152206,20961.0,20959.0,0.00955697]
[1673664355130,0.2,20960.0,20959.0,0.00955697]
[1673664355376,2.76515683,20960.0,20959.0,0.00955697]
[1673664355614,0.21044303,20959.0,20954.0,0.00955697]
[1673664355859,2.28011308,20958.0,20954.0,0.00955697]
[1673664356102,0.98237714,20957.0,20954.0,0.00955697]
[1673664356346,1.561414,20956.0,20954.0,0.00955697]
[1673664356587,0.213287,20955.0,20954.0,0.00955697]
[1673664356829,0.620347,20956.0,20954.0,0.00955697]
[1673664357568,0.32072,20955.0,20954.0,0.00955697]
[1673664358075,0.941096,20955.0,20954.0,0.00955697]
[1673664358320,0.40880855,20955.0,20954.0,0.00955697]
[1673664358567,0.19552155,20955.0,20954.0,0.00955697]
[1673664359333,0.51624155,20955.0,20954.0,0.00955697]
[1673664359566,1.13661755,20955.0,20954.0,0.00955697]
[1673664360580,0.620376,20955.0,20954.0,0.00955697]
[1673664360822,0.941096,20955.0,20954.0,0.00955697]
[1673664361340,0.32072,20955.0,20954.0,0.20028292]
[1673664361589,0.76918035,20956.0,20954.0,0.00955697]
[1673664361838,1.12587379,20955.0,20954.0,0.00955697]
[1673664362081,0.80515379,20955.0,20954.0,0.00955697]
[1673664362324,1.12587379,20955.0,20954.0,0.00955697]
[1673664363076,0.941096,20955.0,20954.0,0.00955697]
[1673664364074,1.68341769,20955.0,20954.0,5.697e-05]
[1673664364314,1.68341769,20955.0,20953.0,0.00955717]
[1673664364552,0.213287,20954.0,20953.0,0.00955717]
[1673664364794,1.454099,20954.0,20953.0,0.00955717]
[1673664365296,2.27501736,20954.0,20951.0,0.01206349]
[1673664365543,0.32072,20953.0,20951.0,0.01206349]
[1673664365815,1.454217,20952.0,20951.0,0.01206349]
[1673664366065,1.62135537,20952.0,20951.0,0.01206349]
[1673664366319,1.454217,20952.0,20951.0,0.01206349]
[1673664366611,1.519337,20952.0,20951.0,0.01206349]
[1673664367128,2.25823886,20952.0,20951.0,0.01206349]
[1673664367389,0.2,20951.0,20950.0,3.84737185]
[1673664367644,1.61841669,20951.0,20950.0,3.78668336]
[1673664367888,1.61841669,20951.0,20950.0,3.74117776]
[1673664368137,1.61841669,20951.0,20950.0,3.07217025]
[1673664368395,0.2,20950.0,20948.0,0.01206349]
[1673664368636,0.2,20950.0,20946.0,0.00019]
[1673664368637,2.61727069,20949.0,20946.0,0.00019]
[1673664368896,0.99792169,20948.0,20946.0,0.00019]
[1673664369154,2.075126,20947.0,20946.0,0.00019]
[1673664369655,0.2,20946.0,20944.0,0.01164485]
[1673664369899,2.182739,20945.0,20944.0,0.01164485]
[1673664370920,2.382739,20945.0,20944.0,0.01164485]
[1673664375181,2.54226188,20945.0,20944.0,0.01164485]
[1673664375429,2.382739,20945.0,20944.0,0.01164485]
[1673664375671,2.32555328,20945.0,20944.0,0.01164485]
[1673664376416,0.7693038,20947.0,20944.0,0.4014042]
[1673664376663,0.16790796,20946.0,20944.0,0.4014042]
[1673664376904,0.16790796,20946.0,20944.0,0.01164485]
[1673664377184,0.16269838,20945.0,20944.0,0.01164485]
[1673664377671,1.241306,20946.0,20944.0,0.01164485]
[1673664377917,0.585856,20945.0,20944.0,0.01164485]
[1673664378160,1.206529,20945.0,20944.0,0.01164485]
[1673664378410,1.141409,20945.0,20944.0,0.01164485]
[1673664378646,1.49599297,20945.0,20944.0,0.01164485]
[1673664379137,1.76409778,20945.0,20944.0,0.01164485]
[1673664379378,1.49599297,20945.0,20944.0,0.01164485]
[1673664380109,1.29599297,20945.0,20944.0,0.01164485]
[1673664380885,1.49599297,20945.0,20944.0,0.01164485]
[1673664381374,2.13680174,20945.0,20944.0,0.01164485]
[1673664381862,2.08595567,20945.0,20944.0,0.01164485]
[1673664382567,3.06485567,20945.0,20944.0,0.01164485]
[1673664383865,0.47720169,20936.0,20926.0,0.3548848]
[1673664384116,0.47720169,20936.0,20918.0,0.57204645]
[1673664384117,0.1147,20927.0,20918.0,0.57204645]
[1673664384358,0.06512,20922.0,20920.0,0.18899364]
[1673664384609,1.08137086,20925.0,20922.0,0.16889399]
[1673664384863,0.38974241,20924.0,20919.0,0.21827]
[1673664385104,0.15837573,20923.0,20919.0,0.21827]
[1673664385347,0.0002,20923.0,20920.0,0.6]
[1673664386107,0.01855497,20922.0,20920.0,0.6]
[1673664386371,0.0002,20923.0,20920.0,0.6]
[1673664386612,0.0002,20923.0,20919.0,1.0576]
[1673664386858,0.0002,20923.0,20921.0,0.19467998]
[1673664387122,0.14520307,20923.0,20921.0,0.19467998]
[1673664387372,0.1909491,20925.0,20921.0,0.19467998]
[1673664387628,0.621248,20926.0,20919.0,1.0576]
[1673664387877,0.621205,20928.0,20920.0,0.6]
[1673664388128,0.77014794,20928.0,20920.0,0.595]
[1673664388388,0.09848708,20927.0,20921.0,0.35648595]
[1673664388644,0.09868708,20926.0,20921.0,0.35648595]
[1673664388887,0.09868708,20926.0,20922.0,0.0556486]
[1673664389127,0.16553146,20925.0,20922.0,0.0506486]
[1673664389386,0.16553146,20925.0,20920.0,0.16198522]
[1673664389629,0.18098103,20922.0,20919.0,1.0576]
[1673664389881,0.09848708,20921.0,20918.0,0.00019]
[1673664390132,0.09848708,20920.0,20918.0,0.19208006]
[1673664390620,0.09848708,20920.0,20918.0,0.21109807]
[1673664391115,0.80235703,20922.0,20918.0,0.21109807]
[1673664391380,0.621347,20923.0,20920.0,0.16196323]
[1673664391625,0.16191262,20924.0,20921.0,0.19072595]
[1673664391860,0.626273,20925.0,20922.0,0.19072595]
[1673664392102,0.80127605,20925.0,20922.0,0.19072595]
[1673664392397,0.621273,20925.0,20922.0,0.20979855]
[1673664392624,0.16018653,20925.0,20919.0,0.21134]
[1673664392893,0.16018653,20925.0,20918.0,0.01920801]
[1673664392894,0.27694279,20924.0,20921.0,0.15544711]
[1673664393133,0.27694279,20924.0,20919.0,0.14672067]
[1673664393134,0.621325,20923.0,20919.0,0.14672067]
[1673664393383,0.09848708,20923.0,20922.0,0.14225219]
[1673664393646,0.62148,20925.0,20922.0,0.33297814]
[1673664393647,0.14213813,20924.0,20922.0,0.33297814]
[1673664393881,0.62148,20925.0,20923.0,0.19072595]
[1673664393882,0.0002,20925.0,20923.0,0.19072595]
[1673664394132,0.0002,20925.0,20924.0,0.0190726]
[1673664394374,0.621058,20932.0,20924.0,0.0190726]
[1673664394676,0.16184436,20929.0,20925.0,0.19072595]
[1673664394915,0.17949231,20927.0,20925.0,0.2317058]
[1673664395158,0.621128,20930.0,20924.0,0.0190726]
[1673664395159,0.005,20929.0,20924.0,0.0190726]
[1673664395424,0.91584217,20929.0,20926.0,0.1643824]
[1673664395674,0.626163,20929.0,20926.0,0.1643824]
[1673664395915,0.005,20929.0,20926.0,0.14390839]
[1673664396167,0.621103,20931.0,20927.0,0.01439084]
[1673664396422,0.0002,20929.0,20928.0,0.19072595]
[1673664396935,0.0002,20929.0,20927.0,1.242377]
[1673664397708,0.0002,20929.0,20928.0,0.2]
[1673664398155,0.15915865,20934.0,20928.0,0.2]
[1673664398412,0.17746908,20933.0,20929.0,0.19072595]
[1673664398648,0.17746908,20933.0,20930.0,0.0390726]
[1673664398918,0.77447307,20935.0,20930.0,0.22979855]
[1673664399167,0.79058154,20935.0,20931.0,0.19072595]
[1673664399676,0.005,20935.0,20931.0,0.19072595]
[1673664399930,0.2,20940.0,20932.0,0.2958171]
[1673664399931,0.005,20939.0,20932.0,0.2958171]
[1673664400202,0.14572749,20939.0,20933.0,0.19072595]
[1673664400439,0.0002,20935.0,20934.0,0.19072595]
[1673664400686,0.0002,20935.0,20934.0,0.27540222]
[1673664401444,0.05355,20935.0,20932.0,1.146]
[1673664401704,0.14848707,20934.0,20932.0,1.146]
[1673664402178,0.620984,20935.0,20932.0,1.146]
[1673664402447,1.37787866,20935.0,20931.0,0.1454635]
[1673664402698,0.07012,20933.0,20927.0,0.18538444]
[1673664402954,1.84892401,20932.0,20927.0,1.0729]
[1673664403196,0.005,20930.0,20927.0,1.0729]
[1673664403448,0.15348707,20930.0,20926.0,0.17707829]
[1673664403694,0.14848707,20929.0,20926.0,0.17707829]
[1673664404694,0.005,20927.0,20926.0,0.17707829]
[1673664404939,0.82804407,20927.0,20923.0,1.0729]
[1673664405181,0.14848707,20926.0,20925.0,0.19320664]
[1673664405433,0.626207,20927.0,20923.0,1.180209]
[1673664405690,0.92210555,20927.0,20924.0,0.30554369]
[1673664405945,0.15241148,20927.0,20924.0,0.18894784]
[1673664406188,0.14741148,20927.0,20924.0,0.18894784]
[1673664406437,0.005,20927.0,20924.0,0.19072595]
[1673664406684,0.005,20930.0,20925.0,0.0190726]
[1673664406947,0.005,20930.0,20926.0,1.43317895]
[1673664407205,0.005,20930.0,20927.0,0.19072595]
[1673664407455,0.005,20930.0,20928.0,0.2]
[1673664407702,0.005,20933.0,20929.0,1.47209255]
[1673664407953,0.005,20933.0,20930.0,0.19052595]
[1673664408192,0.18953977,20933.0,20929.0,1.2813666]
[1673664408453,0.18953977,20933.0,20931.0,0.18249425]
[1673664409442,0.81056977,20933.0,20929.0,0.19208468]
[1673664409692,0.14868707,20932.0,20929.0,0.19208468]
[1673664409947,0.005,20930.0,20928.0,0.15263679]
[1673664410192,0.15368707,20930.0,20928.0,0.26196047]
[1673664410427,0.005,20930.0,20928.0,0.15263679]
[1673664410945,0.005,20930.0,20925.0,2.014092]
[1673664411196,0.33962871,20929.0,20927.0,0.15397314]
[1673664411445,0.005,20927.0,20925.0,0.9818]
[1673664411683,0.15368707,20927.0,20924.0,0.17586145]
[1673664411932,0.15368707,20927.0,20925.0,0.15313663]
[1673664412197,0.005,20927.0,20925.0,0.15313663]
[1673664412444,0.005,20927.0,20923.0,0.15344087]
[1673664412678,0.621177,20928.0,20923.0,0.00019]
[1673664412679,0.005,20924.0,20923.0,0.00019]
[1673664412936,0.20703707,20924.0,20923.0,0.00019]
[1673664413182,0.20703707,20924.0,20922.0,0.14561199]
[1673664413183,0.05835,20924.0,20922.0,0.14561199]
[1673664413421,0.005,20924.0,20920.0,0.97791495]
[1673664413670,0.15368707,20924.0,20921.0,1.12139802]
[1673664413920,0.005,20924.0,20922.0,0.95610648]
[1673664414431,0.005,20924.0,20921.0,0.36529154]
[1673664414681,0.005,20924.0,20922.0,0.15548908]
[1673664414925,0.005,20924.0,20921.0,0.36529154]
[1673664415190,0.62588876,20923.0,20920.0,0.15652495]
[1673664415437,0.05835,20921.0,20920.0,0.01541898]
[1673664415714,0.679735,20921.0,20920.0,0.01541898]
[1673664416196,0.21698376,20921.0,20920.0,0.01541898]
[1673664416679,0.83836876,20921.0,20920.0,0.01541898]
[1673664416920,1.15693669,20921.0,20920.0,0.01541898]
[1673664417179,1.82527411,20921.0,20920.0,0.01541898]
[1673664417421,2.38497763,20921.0,20920.0,0.01541898]
[1673664417912,2.38003763,20921.0,20920.0,0.01541898]
[1673664418652,2.38003763,20921.0,20920.0,1.898e-05]
[1673664418895,0.2,20920.0,20915.0,0.00019]
[1673664419146,0.06512,20916.0,20915.0,0.00019]
[1673664419394,1.01174476,20916.0,20915.0,0.00019]
[1673664419646,2.72765669,20916.0,20915.0,0.00019]
[1673664420635,2.72765669,20916.0,20915.0,0.19091595]
[1673664420636,0.942269,20916.0,20915.0,0.19091595]
[1673664420887,0.621533,20916.0,20914.0,0.01964835]
[1673664421866,0.19494478,20915.0,20912.0,0.16491008]
[1673664422111,0.34363185,20915.0,20913.0,0.95654911]
[1673664422360,0.19494478,20915.0,20910.0,1.49557956]
[1673664422617,0.14868707,20914.0,20911.0,1.09280075]
[1673664422864,0.14868707,20914.0,20912.0,0.95656525]
[1673664423105,0.621565,20915.0,20909.0,0.43195158]
[1673664423355,0.97028507,20914.0,20910.0,0.9566211]
[1673664423597,0.06512,20911.0,20910.0,0.9566211]
[1673664423853,0.06512,20911.0,20908.0,0.01635693]
[1673664423854,0.676802,20911.0,20908.0,0.01635693]
[1673664424094,0.2,20910.0,20908.0,0.01635693]
[1673664424359,0.37089201,20910.0,20908.0,0.01635693]
[1673664424612,0.97040107,20910.0,20908.0,0.01616693]
[1673664424864,0.821714,20910.0,20908.0,0.01616693]
[1673664425381,1.0282381,20910.0,20908.0,0.01616693]
[1673664425644,1.46833294,20910.0,20908.0,0.01616693]
[1673664425924,1.29891569,20910.0,20908.0,0.01616693]
[1673664426178,0.99793769,20909.0,20902.0,0.29963972]
[1673664426448,0.06412,20906.0,20903.0,0.00019]
[1673664426713,1.09128307,20905.0,20903.0,0.00019]
[1673664426968,0.46942307,20904.0,20903.0,0.00019]
[1673664427238,1.142626,20904.0,20903.0,0.00019]
[1673664427484,0.2,20909.0,20904.0,0.19668657]
[1673664427745,0.2,20910.0,20905.0,0.21601661]
[1673664427983,0.17692348,20907.0,20905.0,0.21601661]
[1673664428229,0.17692348,20907.0,20905.0,0.02529066]
[1673664428478,0.0002,20910.0,20905.0,0.21601661]
[1673664428725,0.0002,20910.0,20906.0,0.21232761]
[1673664428970,0.0002,20910.0,20907.0,1.24359]
[1673664429227,0.0002,20910.0,20906.0,0.95671293]
[1673664429470,0.14783065,20910.0,20906.0,0.3342611]
[1673664429723,0.0002,20910.0,20908.0,0.1720492]
[1673664430213,0.19965905,20910.0,20906.0,1.78924895]
[1673664430463,0.18519692,20909.0,20906.0,0.9767]
[1673664430711,0.33388399,20909.0,20906.0,0.18921402]
[1673664430959,0.81108568,20909.0,20906.0,0.18921402]
[1673664431202,0.97717478,20909.0,20903.0,0.622083]
[1673664431451,0.14868707,20908.0,20905.0,0.17148301]
[1673664431700,0.81108568,20909.0,20905.0,0.17148301]
[1673664431945,1.28414461,20909.0,20903.0,0.81280895]
[1673664432204,0.00017,20909.0,20904.0,0.19072595]
[1673664432456,0.00017,20909.0,20906.0,0.621819]
[1673664432702,0.00017,20909.0,20906.0,0.81254495]
[1673664433193,0.00017,20909.0,20907.0,0.2]
[1673664433443,0.00017,20909.0,20908.0,0.71807875]
[1673664433700,0.00017,20909.0,20908.0,0.9088047]
[1673664433955,0.19011014,20916.0,20908.0,0.71807875]
[1673664434202,0.19011014,20916.0,20909.0,0.39072595]